[Event "9th RTU Open 2019"]
[Site "Riga"]
[Date "2019.08.06"]
[Round "2.33"]
[White "Akhvlediani, Irakli"]
[Black "Mikaelyan, Arman"]
[Result "0-1"]
[ECO "A41"]
[WhiteElo "2287"]
[BlackElo "2454"]
[Annotator "ChessBase"]
[PlyCount "106"]
[EventDate "2019.08.05"]
[EventType "swiss"]
[EventCountry "LAT"]
[SourceTitle "playchess.com"]
[Source "ChessBase"]
[SourceQuality "1"]
[TimeControl "5400+30"]

1. d4 {[%emt 0:00:00]} g6 {[%emt 0:00:04]} 2. c4 {[%emt 0:00:00]} Bg7 {[%emt 0:00:06]} 3. Nf3 {[%emt 0:00:00]} d6 {[%emt 0:01:05]} 4. Nc3 {[%emt 0:00:09]} Nd7 {[%emt 0:00:52]} 5. g3 {[%emt 0:01:22]} e5 {[%emt 0:00:40]} 6. Bg2 {[%emt 0:00:05]} Ne7 {[%emt 0:00:36]} 7. O-O {[%emt 0:00:05]} O-O {[%emt 0:00:25]} 8. dxe5 {[%emt 0:02:56]} dxe5 {[%emt 0:02:07]} 9. Qc2 {[%emt 0:00:03]} Nc5 {[%emt 0:04:11]} 10. Rd1 {[%emt 0:03:20]} Qe8 {[%emt 0:01:54]} 11. b3 {[%emt 0:18:06]} Bf5 {[%emt 0:16:56]} 12. e4 {[%emt 0:00:05]} Bg4 {[%emt 0:00:13]} 13. Ba3 {[%emt 0:07:27]} Ne6 {[%emt 0:01:21]} 14. Nd5 {[%emt 0:02:18]} c5 {[%emt 0:03:12]} 15. Re1 {[%emt 0:34:17]} Nc6 {[%emt 0:05:09]} 16. h3 {[%emt 0:21:08]} Bxf3 17. Bxf3 {[%emt 0:00:01]} f5 {[%emt 0:03:39]} 18. Bg2 {[%emt 0:00:39]} f4 {[%emt 0:00:53]} 19. Qd3 {[%emt 0:01:31]} Ncd4 {[%emt 0:02:10]} 20. Bb2 {[%emt 0:02:27]} Rf7 {[%emt 0:01:45]} 21. Rab1 {[%emt 0:01:25]} Qd7 {[%emt 0:03:59]} 22. h4 {[%emt 0:01:28]} Raf8 {[%emt 0:00:34]} 23. Rf1 {[%emt 0:00:20]} g5 {[%emt 0:02:35]} 24. Bh3 {[%emt 0:00:41]} Qd8 {[%emt 0:04:17]} 25. h5 {[%emt 0:01:09]} g4 {[%emt 0:13:35]} 26. Bxg4 {[%emt 0:00:01]} Qg5 {[%emt 0:00:18]} 27. f3 {[%emt 0:00:46]} fxg3 {[%emt 0:05:50]} 28. Kg2 {[%emt 0:00:01]} Rd8 {[%emt 0:05:32]} 29. Bxd4 {[%emt 0:02:08]} Nf4+ {[%emt 0:14:38]} 30. Nxf4 {[%emt 0:00:04]} Rxf4 {[%emt 0:00:18]} 31. Rbd1 {[%emt 0:00:45]} Rxd4 {[%emt 0:00:40]} 32. Qe2 {[%emt 0:00:05]} Rf8 {[%emt 0:01:10]} 33. Rxd4 {[%emt 0:01:04]} exd4 {[%emt 0:00:15]} 34. Qd3 {[%emt 0:00:31]} Be5 {[%emt 0:00:22]} 35. Rh1 {[%emt 0:00:17]} Rf4 {[%emt 0:00:35]} 36. h6 {[%emt 0:00:29]} Qf6 {[%emt 0:00:30]} 37. Qd2 {[%emt 0:00:31]} Kf8 {[%emt 0:01:39]} 38. Rh5 {[%emt 0:00:18]} b6 {[%emt 0:00:44]} 39. a4 {[%emt 0:00:46]} a5 {[%emt 0:00:39]} 40. Rh3 {[%emt 0:00:37]} Ke7 {[%emt 0:00:30]} 41. Rh5 {[%emt 0:00:30]} Kd8 {[%emt 0:00:29]} 42. Rh1 {[%emt 0:00:28]} Kc7 {[%emt 0:00:19]} 43. Rh5 {[%emt 0:00:22]} Kb8 {[%emt 0:01:16]} 44. Rh3 {[%emt 0:00:06]} Kb7 {[%emt 0:00:37]} 45. Rh5 {[%emt 0:00:06]} Kc7 {[%emt 0:00:12]} 46. Rh3 {[%emt 0:00:10]} d3 {[%emt 0:00:50]} 47. Rh5 {[%emt 0:01:39]} Qd6 {[%emt 0:01:53]} 48. Rh1 {[%emt 0:00:42]} Qd4 {[%emt 0:00:15]} 49. Bf5 {[%emt 0:00:29]} Qd8 {[%emt 0:00:28]} 50. Rd1 {[%emt 0:00:28]} Qh4 {[%emt 0:01:15]} 51. Rh1 {[%emt 0:00:03]} Qxh1+ {[%emt 0:00:53]} 52. Kxh1 {[%emt 0:00:11]} Rh4+ {[%emt 0:00:03]} 53. Kg1 {[%emt 0:00:35]} Bd4+ {[%emt 0:00:05]} 0-1

[Event "9th RTU Open 2019"]
[Site "Riga"]
[Date "2019.08.06"]
[Round "3.1"]
[White "Kovalenko, Igor"]
[Black "Kjartansson, Gudmundur"]
[Result "1-0"]
[ECO "D45"]
[WhiteElo "2654"]
[BlackElo "2470"]
[Annotator "ChessBase"]
[PlyCount "113"]
[EventDate "2019.08.05"]
[EventType "swiss"]
[EventCountry "LAT"]
[SourceTitle "playchess.com"]
[Source "ChessBase"]
[SourceQuality "1"]
[TimeControl "5400+30"]

1. d4 {[%emt 0:00:00]} d5 {[%emt 0:00:50]} 2. c4 {[%emt 0:00:00]} e6 {[%emt 0:00:06]} 3. Nc3 {[%emt 0:00:00]} c6 {[%emt 0:00:11]} 4. e3 {[%emt 0:00:22]} Nf6 {[%emt 0:00:15]} 5. Nf3 {[%emt 0:00:04]} Nbd7 {[%emt 0:00:28]} 6. Qc2 {[%emt 0:00:05]} Bd6 {[%emt 0:00:20]} 7. b3 {[%emt 0:00:08]} O-O {[%emt 0:00:36]} 8. Bb2 {[%emt 0:00:02]} b6 {[%emt 0:00:37]} 9. Bd3 {[%emt 0:01:46]} e5 {[%emt 0:03:05]} 10. Nxd5 {[%emt 0:03:11]} cxd5 {[%emt 0:02:44]} 11. dxe5 {[%emt 0:00:04]} Bb4+ {[%emt 0:05:35]} 12. Kf1 {[%emt 0:03:16]} dxc4 {[%emt 0:10:20]} 13. Bxc4 {[%emt 0:02:08]} Ne8 {[%emt 0:02:13]} 14. h4 {[%emt 0:00:33]} Nc5 {[%emt 0:28:01]} 15. a3 {[%emt 0:02:14]} Ba5 {[%emt 0:00:49]} 16. b4 {[%emt 0:00:43]} Be6 {[%emt 0:02:34]} 17. bxc5 {[%emt 0:03:06]} Bxc4+ {[%emt 0:00:41]} 18. Qxc4 {[%emt 0:00:03]} bxc5 {[%emt 0:01:11]} 19. Qxc5 {[%emt 0:02:21]} Bb6 {[%emt 0:07:12]} 20. Qc2 {[%emt 0:00:33]} Rc8 {[%emt 0:00:07]} 21. Qe4 {[%emt 0:00:18]} f5 {[%emt 0:01:09]} 22. exf6 {[%emt 0:14:57]} Nxf6 {[%emt 0:00:37]} 23. Qe6+ {[%emt 0:00:03]} Kh8 {[%emt 0:00:20]} 24. Kg1 {[%emt 0:00:13]} Rc2 {[%emt 0:11:21]} 25. Bxf6 {[%emt 0:00:54]} Rxf6 {[%emt 0:04:23]} 26. Qe4 {[%emt 0:00:08]} Qc8 {[%emt 0:00:44]} 27. h5 {[%emt 0:03:30]} Rc4 {[%emt 0:02:11]} 28. Qd5 {[%emt 0:00:11]} Rc5 {[%emt 0:01:31]} 29. Qd1 {[%emt 0:00:05]} Rfc6 {[%emt 0:01:44]} 30. Qd3 {[%emt 0:05:16]} Rc3 {[%emt 0:04:30]} 31. Qe4 {[%emt 0:00:46]} R3c4 {[%emt 0:01:02]} 32. Nd4 {[%emt 0:09:56]} Bxd4 {[%emt 0:00:31]} 33. exd4 {[%emt 0:00:03]} Re6 {[%emt 0:00:54]} 34. Qd5 {[%emt 0:02:32]} h6 {[%emt 0:02:21]} 35. Rh4 {[%emt 0:02:53]} Rf6 {[%emt 0:02:08]} 36. Re1 {[%emt 0:04:17]} Rc1 {[%emt 0:01:34]} 37. Rhe4 {[%emt 0:00:06]} Rf5 {[%emt 0:00:52]} 38. Qb3 {[%emt 0:00:10]} Rxe1+ {[%emt 0:01:46]} 39. Rxe1 {[%emt 0:00:03]} Qf8 {[%emt 0:01:08]} 40. Qa4 {[%emt 0:00:24]} Kh7 {[%emt 0:00:15]} 41. Qc2 {[%emt 0:01:52]} Kh8 {[%emt 0:00:23]} 42. Qa4 {[%emt 0:00:58]} Kh7 {[%emt 0:00:34]} 43. Re8 {[%emt 0:00:06]} Qf7 {[%emt 0:00:10]} 44. Qc2 {[%emt 0:00:07]} Qxe8 {[%emt 0:00:35]} 45. Qxf5+ {[%emt 0:00:04]} Kh8 {[%emt 0:00:04]} 46. d5 {[%emt 0:00:23]} Qe1+ {[%emt 0:00:46]} 47. Kh2 {[%emt 0:00:03]} Qe7 {[%emt 0:00:04]} 48. Qf3 {[%emt 0:01:41]} Qh4+ {[%emt 0:00:12]} 49. Kg1 {[%emt 0:00:03]} Qd4 {[%emt 0:00:04]} 50. g3 {[%emt 0:00:13]} a5 {[%emt 0:00:23]} 51. Kg2 {[%emt 0:00:42]} a4 {[%emt 0:00:30]} 52. Qf8+ {[%emt 0:00:07]} Kh7 {[%emt 0:00:05]} 53. Qf5+ {[%emt 0:00:09]} Kh8 {[%emt 0:00:04]} 54. Qe6 {[%emt 0:00:36]} Qc4 {[%emt 0:00:34]} 55. g4 {[%emt 0:02:48]} Qb3 {[%emt 0:00:13]} 56. Qe8+ {[%emt 0:00:25]} Kh7 {[%emt 0:00:05]} 57. Qe4+ {[%emt 0:00:02]} 1-0

[Event "9th RTU Open 2019"]
[Site "Riga"]
[Date "2019.08.06"]
[Round "3.2"]
[White "Abasov, Nijat"]
[Black "Usmanov, Vasily"]
[Result "1/2-1/2"]
[ECO "D22"]
[WhiteElo "2641"]
[BlackElo "2443"]
[Annotator "ChessBase"]
[PlyCount "41"]
[EventDate "2019.08.05"]
[EventType "swiss"]
[EventCountry "LAT"]
[SourceTitle "playchess.com"]
[Source "ChessBase"]
[SourceQuality "1"]
[TimeControl "5400+30"]

1. d4 {[%emt 0:08:48]} d5 {[%emt 0:00:00]} 2. Nf3 {[%emt 0:00:14]} Nf6 {[%emt 0:00:00]} 3. c4 {[%emt 0:00:08]} dxc4 {[%emt 0:00:00]} 4. e3 {[%emt 0:00:09]} Bg4 {[%emt 0:00:00]} 5. Bxc4 {[%emt 0:00:10]} e6 {[%emt 0:00:00]} 6. O-O {[%emt 0:03:01]} a6 {[%emt 0:00:04]} 7. h3 {[%emt 0:00:23]} Bh5 {[%emt 0:00:06]} 8. Be2 {[%emt 0:00:16]} Nc6 {[%emt 0:00:06]} 9. Nbd2 {[%emt 0:05:08]} Bd6 {[%emt 0:00:13]} 10. b3 {[%emt 0:03:00]} O-O {[%emt 0:00:07]} 11. Bb2 {[%emt 0:00:41]} Qe7 {[%emt 0:01:44]} 12. Rc1 {[%emt 0:06:29]} Nd5 {[%emt 0:27:24]} 13. Nc4 {[%emt 0:02:43]} f5 {[%emt 0:01:59]} 14. Nxd6 {[%emt 0:12:47]} cxd6 {[%emt 0:00:06]} 15. Ba3 {[%emt 0:00:09]} Rac8 {[%emt 0:07:59]} 16. Qd2 {[%emt 0:01:53]} Rc7 {[%emt 0:10:35]} 17. Rc2 {[%emt 0:03:31]} Rfc8 {[%emt 0:02:13]} 18. Rfc1 {[%emt 0:00:12]} Qd8 {[%emt 0:04:27]} 19. Bc4 {[%emt 0:02:52]} Bxf3 {[%emt 0:03:49]} 20. gxf3 {[%emt 0:00:08]} b5 {[%emt 0:00:39]} 21. Bf1 {[%emt 0:01:07]} 1/2-1/2

[Event "9th RTU Open 2019"]
[Site "Riga"]
[Date "2019.08.06"]
[Round "3.3"]
[White "Bauer, Christian"]
[Black "Ostrovskiy, Aleksandr"]
[Result "1-0"]
[ECO "B12"]
[WhiteElo "2646"]
[BlackElo "2453"]
[Annotator "ChessBase"]
[PlyCount "83"]
[EventDate "2019.08.05"]
[EventType "swiss"]
[EventCountry "LAT"]
[SourceTitle "playchess.com"]
[Source "ChessBase"]
[SourceQuality "1"]
[TimeControl "5400+30"]

1. e4 {[%emt 0:00:00]} c6 {[%emt 0:01:47]} 2. d4 {[%emt 0:00:06]} d5 {[%emt 0:00:07]} 3. e5 {[%emt 0:00:07]} c5 {[%emt 0:00:08]} 4. dxc5 {[%emt 0:00:19]} e6 {[%emt 0:00:13]} 5. a3 {[%emt 0:00:44]} Bxc5 {[%emt 0:01:17]} 6. Nf3 {[%emt 0:00:26]} Ne7 {[%emt 0:01:55]} 7. Bd3 {[%emt 0:00:09]} Ng6 {[%emt 0:02:36]} 8. O-O {[%emt 0:01:17]} Nc6 {[%emt 0:06:46]} 9. b4 {[%emt 0:06:28]} Bb6 {[%emt 0:01:12]} 10. Bb2 {[%emt 0:00:47]} O-O {[%emt 0:01:28]} 11. Re1 {[%emt 0:04:13]} f6 {[%emt 0:01:19]} 12. exf6 {[%emt 0:01:31]} gxf6 {[%emt 0:00:06]} 13. c4 {[%emt 0:03:29]} Nf4 {[%emt 0:04:26]} 14. Bf1 {[%emt 0:10:49]} e5 {[%emt 0:00:41]} 15. cxd5 {[%emt 0:02:40]} Qxd5 {[%emt 0:12:32]} 16. Qxd5+ {[%emt 0:05:18]} Nxd5 {[%emt 0:00:08]} 17. Nbd2 {[%emt 0:03:41]} Be6 {[%emt 0:13:23]} 18. Nc4 {[%emt 0:05:10]} Bc7 {[%emt 0:05:43]} 19. Rac1 {[%emt 0:06:16]} Rad8 {[%emt 0:15:34]} 20. g3 {[%emt 0:03:35]} a6 {[%emt 0:03:38]} 21. Ncd2 {[%emt 0:06:29]} Nde7 {[%emt 0:08:57]} 22. Ne4 {[%emt 0:02:22]} Bd5 {[%emt 0:01:00]} 23. Nh4 {[%emt 0:10:48]} Bb6 {[%emt 0:07:39]} 24. Nc5 {[%emt 0:00:56]} Bxc5 {[%emt 0:00:27]} 25. Rxc5 {[%emt 0:00:17]} Rd6 {[%emt 0:01:37]} 26. f4 {[%emt 0:02:55]} exf4 {[%emt 0:00:36]} 27. gxf4 {[%emt 0:00:29]} Kf7 {[%emt 0:00:34]} 28. Kf2 {[%emt 0:07:13]} b6 {[%emt 0:01:10]} 29. Rcc1 {[%emt 0:03:21]} b5 {[%emt 0:00:34]} 30. Be2 {[%emt 0:03:52]} Rfd8 {[%emt 0:02:00]} 31. Rc5 {[%emt 0:01:12]} Kf8 {[%emt 0:00:53]} 32. Bc3 {[%emt 0:02:34]} R8d7 {[%emt 0:04:35]} 33. Bg4 {[%emt 0:01:19]} Rd8 {[%emt 0:00:03]} 34. Re3 {[%emt 0:01:36]} Bc4 {[%emt 0:01:01]} 35. Nf5 {[%emt 0:02:52]} Nxf5 {[%emt 0:00:10]} 36. Rxf5 {[%emt 0:00:07]} Kg7 {[%emt 0:00:26]} 37. Rg5+ {[%emt 0:00:44]} Kf8 {[%emt 0:00:23]} 38. Rf5 {[%emt 0:00:53]} Kg7 {[%emt 0:00:02]} 39. Bh5 {[%emt 0:01:28]} Rf8 {[%emt 0:01:48]} 40. Be8 {[%emt 0:00:47]} Be6 {[%emt 0:00:34]} 41. Rg3+ {[%emt 0:00:10]} Kh8 {[%emt 0:00:28]} 42. Rxf6 {[%emt 0:00:31]} 1-0

[Event "9th RTU Open 2019"]
[Site "Riga"]
[Date "2019.08.06"]
[Round "3.4"]
[White "Gajewski, Grzegorz"]
[Black "Haria, Ravi"]
[Result "1/2-1/2"]
[ECO "E27"]
[WhiteElo "2613"]
[BlackElo "2430"]
[Annotator "ChessBase"]
[PlyCount "105"]
[EventDate "2019.08.05"]
[EventType "swiss"]
[EventCountry "LAT"]
[SourceTitle "playchess.com"]
[Source "ChessBase"]
[SourceQuality "1"]
[TimeControl "5400+30"]

1. d4 {[%emt 0:00:26]} e6 {[%emt 0:00:00]} 2. c4 {[%emt 0:00:05]} d5 {[%emt 0:00:00]} 3. Nc3 {[%emt 0:00:07]} Bb4 {[%emt 0:01:37]} 4. a3 {[%emt 0:00:34]} Bxc3+ {[%emt 0:00:11]} 5. bxc3 {[%emt 0:00:05]} Nf6 {[%emt 0:01:31]} 6. cxd5 {[%emt 0:01:07]} exd5 {[%emt 0:00:04]} 7. e3 {[%emt 0:00:06]} Bf5 {[%emt 0:00:39]} 8. Ne2 {[%emt 0:01:18]} O-O {[%emt 0:06:51]} 9. f3 {[%emt 0:01:07]} Nc6 {[%emt 0:01:17]} 10. Ra2 {[%emt 0:05:25]} Ne7 {[%emt 0:10:59]} 11. Ng3 {[%emt 0:08:13]} Bg6 {[%emt 0:08:05]} 12. Bd3 {[%emt 0:00:06]} c5 {[%emt 0:03:05]} 13. O-O {[%emt 0:00:34]} Rc8 {[%emt 0:05:25]} 14. Bxg6 {[%emt 0:14:04]} hxg6 {[%emt 0:01:30]} 15. e4 {[%emt 0:01:11]} cxd4 {[%emt 0:10:29]} 16. cxd4 {[%emt 0:00:48]} Qd7 {[%emt 0:01:39]} 17. Bg5 {[%emt 0:02:23]} Rc4 {[%emt 0:11:28]} 18. Rd2 {[%emt 0:13:25]} Rfc8 {[%emt 0:01:34]} 19. Rd3 {[%emt 0:04:12]} Nh7 {[%emt 0:06:35]} 20. Be3 {[%emt 0:03:50]} Nf8 {[%emt 0:01:08]} 21. h4 {[%emt 0:01:11]} Ne6 {[%emt 0:04:51]} 22. Qe1 {[%emt 0:04:18]} Qc7 {[%emt 0:04:14]} 23. h5 {[%emt 0:02:35]} g5 {[%emt 0:04:22]} 24. Nf5 {[%emt 0:13:11]} Nxf5 {[%emt 0:01:52]} 25. exf5 {[%emt 0:00:03]} Nf4 {[%emt 0:00:09]} 26. Bxf4 {[%emt 0:00:08]} Qxf4 {[%emt 0:03:24]} 27. Qe5 {[%emt 0:00:03]} Rc2 {[%emt 0:02:16]} 28. Qxf4 {[%emt 0:07:11]} gxf4 {[%emt 0:00:01]} 29. Kh2 {[%emt 0:00:11]} R8c3 {[%emt 0:06:58]} 30. Rxc3 {[%emt 0:05:32]} Rxc3 {[%emt 0:00:01]} 31. Rb1 {[%emt 0:00:03]} b6 {[%emt 0:01:42]} 32. Rb5 {[%emt 0:00:05]} Rxa3 {[%emt 0:00:19]} 33. Rxd5 {[%emt 0:00:03]} Rd3 {[%emt 0:00:50]} 34. Kh3 {[%emt 0:01:53]} f6 {[%emt 0:01:09]} 35. Kg4 {[%emt 0:00:33]} Rd2 {[%emt 0:00:02]} 36. Kxf4 {[%emt 0:00:05]} Rxg2 {[%emt 0:00:04]} 37. Rd8+ {[%emt 0:00:06]} Kh7 {[%emt 0:01:04]} 38. Ke3 {[%emt 0:02:28]} a5 {[%emt 0:00:49]} 39. d5 {[%emt 0:01:03]} Rg1 {[%emt 0:00:25]} 40. Kd2 {[%emt 0:00:22]} Rg5 {[%emt 0:00:20]} 41. Kd3 {[%emt 0:03:17]} Rxf5 {[%emt 0:00:10]} 42. Kc4 {[%emt 0:00:08]} Rxh5 {[%emt 0:01:13]} 43. Kb5 {[%emt 0:00:07]} Kg6 {[%emt 0:00:28]} 44. Kxb6 {[%emt 0:00:39]} Kf7 {[%emt 0:00:33]} 45. Kc6 {[%emt 0:00:31]} Rf5 {[%emt 0:00:26]} 46. Rd7+ {[%emt 0:01:00]} Kf8 {[%emt 0:00:02]} 47. Ra7 {[%emt 0:02:39]} Rxf3 {[%emt 0:00:14]} 48. d6 {[%emt 0:00:05]} Rc3+ {[%emt 0:00:51]} 49. Kd7 {[%emt 0:00:04]} g5 {[%emt 0:00:58]} 50. Rc7 {[%emt 0:04:31]} Rd3 {[%emt 0:00:23]} 51. Kc6 {[%emt 0:00:02]} Rc3+ {[%emt 0:00:25]} 52. Kd7 {[%emt 0:00:38]} Rd3 {[%emt 0:00:04]} 53. Kc6 {[%emt 0:00:12]} 1/2-1/2

[Event "9th RTU Open 2019"]
[Site "Riga"]
[Date "2019.08.06"]
[Round "3.5"]
[White "Mohammad Nubairshah Shaikh"]
[Black "Svane, Rasmus"]
[Result "1/2-1/2"]
[ECO "D24"]
[WhiteElo "2449"]
[BlackElo "2615"]
[Annotator "ChessBase"]
[PlyCount "39"]
[EventDate "2019.08.05"]
[EventType "swiss"]
[EventCountry "LAT"]
[SourceTitle "playchess.com"]
[Source "ChessBase"]
[SourceQuality "1"]
[TimeControl "5400+30"]

1. Nf3 {[%emt 0:05:25]} d5 {[%emt 0:02:27]} 2. d4 {[%emt 0:00:03]} Nf6 {[%emt 0:00:11]} 3. c4 {[%emt 0:00:02]} e6 {[%emt 0:00:52]} 4. Nc3 {[%emt 0:00:03]} dxc4 {[%emt 0:00:48]} 5. e3 {[%emt 0:02:19]} a6 {[%emt 0:01:04]} 6. a4 {[%emt 0:01:39]} b6 {[%emt 0:04:41]} 7. Bxc4 {[%emt 0:00:05]} Bb7 {[%emt 0:00:32]} 8. O-O {[%emt 0:00:04]} Bb4 {[%emt 0:00:21]} 9. Qe2 {[%emt 0:16:30]} O-O {[%emt 0:09:16]} 10. Bd3 {[%emt 0:19:51]} c5 {[%emt 0:00:46]} 11. Rd1 {[%emt 0:03:06]} cxd4 {[%emt 0:12:12]} 12. exd4 {[%emt 0:00:36]} Nbd7 {[%emt 0:07:00]} 13. Bg5 {[%emt 0:01:17]} Bxc3 {[%emt 0:07:36]} 14. bxc3 {[%emt 0:00:16]} Qc7 {[%emt 0:00:06]} 15. c4 {[%emt 0:11:05]} h6 {[%emt 0:05:45]} 16. Bc1 {[%emt 0:07:44]} Rfe8 {[%emt 0:02:00]} 17. Ne5 {[%emt 0:08:36]} Nxe5 {[%emt 0:06:35]} 18. Qxe5 {[%emt 0:00:04]} Qxe5 {[%emt 0:08:44]} 19. dxe5 {[%emt 0:00:02]} Nd7 {[%emt 0:01:29]} 20. Bh7+ {[%emt 0:04:14]} 1/2-1/2

[Event "9th RTU Open 2019"]
[Site "Riga"]
[Date "2019.08.06"]
[Round "3.6"]
[White "Mammadzada, Gunay"]
[Black "Gopal G.N."]
[Result "0-1"]
[ECO "B90"]
[WhiteElo "2427"]
[BlackElo "2594"]
[Annotator "ChessBase"]
[PlyCount "82"]
[EventDate "2019.08.05"]
[EventType "swiss"]
[EventCountry "LAT"]
[SourceTitle "playchess.com"]
[Source "ChessBase"]
[SourceQuality "1"]
[TimeControl "5400+30"]

1. e4 {[%emt 0:00:46]} c5 {[%emt 0:00:00]} 2. Nf3 {[%emt 0:00:12]} d6 {[%emt 0:00:00]} 3. d4 {[%emt 0:00:05]} cxd4 {[%emt 0:00:00]} 4. Nxd4 {[%emt 0:00:04]} Nf6 {[%emt 0:00:00]} 5. Nc3 {[%emt 0:00:08]} a6 {[%emt 0:00:00]} 6. Be3 {[%emt 0:00:05]} e5 {[%emt 0:00:00]} 7. Nb3 {[%emt 0:00:23]} Be6 {[%emt 0:00:25]} 8. Qd2 {[%emt 0:00:16]} Nbd7 {[%emt 0:00:57]} 9. O-O-O {[%emt 0:00:40]} Be7 {[%emt 0:01:31]} 10. f4 {[%emt 0:00:15]} b5 {[%emt 0:00:26]} 11. Kb1 {[%emt 0:00:35]} O-O {[%emt 0:03:31]} 12. f5 {[%emt 0:02:02]} Bc4 {[%emt 0:00:04]} 13. Rg1 {[%emt 0:00:14]} Bxf1 {[%emt 0:06:26]} 14. Rdxf1 {[%emt 0:00:17]} b4 {[%emt 0:07:20]} 15. Nd5 {[%emt 0:01:04]} a5 {[%emt 0:01:10]} 16. g4 {[%emt 0:02:19]} a4 {[%emt 0:01:31]} 17. Nc1 {[%emt 0:03:47]} Nxd5 {[%emt 0:00:55]} 18. exd5 {[%emt 0:01:26]} Qa5 {[%emt 0:01:15]} 19. g5 {[%emt 0:04:14]} Bd8 {[%emt 0:02:20]} 20. f6 {[%emt 0:04:11]} g6 {[%emt 0:01:54]} 21. Rg4 {[%emt 0:14:54]} Bb6 {[%emt 0:04:17]} 22. Rd1 {[%emt 0:19:43]} Rfc8 {[%emt 0:06:55]} 23. Rh4 {[%emt 0:08:57]} h5 {[%emt 0:27:59]} 24. gxh6 {[%emt 0:07:32]} Kh7 {[%emt 0:05:55]} 25. Bg5 {[%emt 0:11:57]} Bd4 {[%emt 0:10:25]} 26. Ne2 {[%emt 0:01:14]} Bc5 {[%emt 0:03:15]} 27. Rg4 {[%emt 0:01:53]} Qb6 {[%emt 0:08:20]} 28. b3 {[%emt 0:04:43]} axb3 {[%emt 0:04:28]} 29. cxb3 {[%emt 0:00:02]} Ra3 {[%emt 0:00:35]} 30. h4 {[%emt 0:02:47]} Bd4 {[%emt 0:01:21]} 31. h5 {[%emt 0:01:45]} Qa6 {[%emt 0:00:49]} 32. hxg6+ {[%emt 0:00:34]} fxg6 {[%emt 0:00:01]} 33. Nxd4 {[%emt 0:01:22]} exd4 {[%emt 0:00:01]} 34. Bh4 {[%emt 0:06:01]} Ra8 {[%emt 0:02:08]} 35. Qc2 {[%emt 0:00:27]} d3 {[%emt 0:00:25]} 36. Qc4 {[%emt 0:00:31]} Rxa2 {[%emt 0:00:47]} 37. Qxa6 {[%emt 0:00:19]} R8xa6 {[%emt 0:00:27]} 38. Kc1 {[%emt 0:00:43]} Nc5 {[%emt 0:00:33]} 39. f7 {[%emt 0:00:29]} d2+ {[%emt 0:00:29]} 40. Rxd2 {[%emt 0:00:14]} Nxb3+ {[%emt 0:00:02]} 41. Kb1 {[%emt 0:00:31]} Nxd2+ {[%emt 0:00:06]} 0-1

[Event "9th RTU Open 2019"]
[Site "Riga"]
[Date "2019.08.06"]
[Round "3.7"]
[White "Dastan, Muhammed Batuhan"]
[Black "Low, Zhen Yu Cyrus"]
[Result "1/2-1/2"]
[ECO "B56"]
[WhiteElo "2565"]
[BlackElo "2413"]
[Annotator "ChessBase"]
[PlyCount "129"]
[EventDate "2019.08.05"]
[EventType "swiss"]
[EventCountry "LAT"]
[SourceTitle "playchess.com"]
[Source "ChessBase"]
[SourceQuality "1"]
[TimeControl "5400+30"]

1. e4 {[%emt 0:03:29]} c5 {[%emt 0:00:00]} 2. Nf3 {[%emt 0:00:06]} Nc6 {[%emt 0:00:00]} 3. d4 {[%emt 0:00:39]} cxd4 {[%emt 0:00:00]} 4. Nxd4 {[%emt 0:00:04]} Nf6 {[%emt 0:00:01]} 5. Nc3 {[%emt 0:00:09]} d6 {[%emt 0:00:08]} 6. f3 {[%emt 0:01:55]} e5 {[%emt 0:00:10]} 7. Nb3 {[%emt 0:00:06]} Be6 {[%emt 0:01:16]} 8. Nd5 {[%emt 0:01:26]} Bxd5 {[%emt 0:09:01]} 9. exd5 {[%emt 0:00:22]} Ne7 {[%emt 0:00:09]} 10. Bg5 {[%emt 0:07:39]} Nd7 {[%emt 0:01:03]} 11. Qd2 {[%emt 0:05:46]} h6 {[%emt 0:07:27]} 12. Be3 {[%emt 0:08:25]} Nf5 {[%emt 0:08:19]} 13. Bf2 {[%emt 0:00:25]} Be7 {[%emt 0:00:53]} 14. Bd3 {[%emt 0:03:47]} Nh4 {[%emt 0:01:39]} 15. O-O {[%emt 0:00:54]} O-O {[%emt 0:00:17]} 16. Qb4 {[%emt 0:13:27]} Nb6 {[%emt 0:10:43]} 17. Bxb6 {[%emt 0:17:55]} axb6 {[%emt 0:06:07]} 18. g3 {[%emt 0:00:05]} Ng6 {[%emt 0:00:08]} 19. Bxg6 {[%emt 0:00:03]} fxg6 {[%emt 0:00:07]} 20. Nd2 {[%emt 0:00:03]} Qc7 {[%emt 0:05:02]} 21. Qe4 {[%emt 0:06:07]} b5 {[%emt 0:04:05]} 22. Qd3 {[%emt 0:00:28]} Rfc8 {[%emt 0:09:10]} 23. c3 {[%emt 0:03:21]} b4 {[%emt 0:01:46]} 24. Ne4 {[%emt 0:00:50]} bxc3 {[%emt 0:01:19]} 25. Nxc3 {[%emt 0:00:05]} Kh7 {[%emt 0:00:42]} 26. Kg2 {[%emt 0:00:38]} Qc4 {[%emt 0:07:24]} 27. Rad1 {[%emt 0:00:20]} b5 {[%emt 0:01:01]} 28. a3 {[%emt 0:00:46]} b4 {[%emt 0:02:08]} 29. axb4 {[%emt 0:01:09]} Qxb4 {[%emt 0:00:32]} 30. Rf2 {[%emt 0:00:49]} Rab8 {[%emt 0:05:10]} 31. Ra1 {[%emt 0:04:36]} Qc4 {[%emt 0:01:32]} 32. Qe4 {[%emt 0:00:05]} Rb7 {[%emt 0:02:25]} 33. Qc2 {[%emt 0:05:27]} Rcb8 {[%emt 0:04:41]} 34. Ra4 {[%emt 0:00:12]} Qc5 {[%emt 0:00:40]} 35. Ra2 {[%emt 0:04:36]} Bd8 {[%emt 0:01:42]} 36. Qd3 {[%emt 0:01:19]} Rb3 {[%emt 0:00:32]} 37. Qd1 {[%emt 0:02:19]} R3b4 {[%emt 0:04:13]} 38. Re2 {[%emt 0:01:39]} Rd4 {[%emt 0:00:19]} 39. Qc2 {[%emt 0:00:04]} Ba5 {[%emt 0:01:09]} 40. h4 {[%emt 0:00:17]} h5 {[%emt 0:05:08]} 41. Ne4 {[%emt 0:00:47]} Qxc2 {[%emt 0:00:02]} 42. Rxc2 {[%emt 0:00:11]} Rxd5 {[%emt 0:00:05]} 43. b4 {[%emt 0:03:11]} Bxb4 {[%emt 0:01:23]} 44. Rc7 {[%emt 0:01:08]} Ra5 {[%emt 0:00:36]} 45. Ng5+ {[%emt 0:04:33]} Kg8 {[%emt 0:01:03]} 46. Rac2 {[%emt 0:00:02]} Rc5 {[%emt 0:00:14]} 47. R2xc5 {[%emt 0:00:04]} Bxc5 {[%emt 0:00:10]} 48. Ne6 {[%emt 0:00:37]} Kh8 {[%emt 0:01:45]} 49. Rxg7 {[%emt 0:00:35]} Rb2+ {[%emt 0:00:22]} 50. Kh3 {[%emt 0:00:33]} Bg1 {[%emt 0:00:01]} 51. g4 {[%emt 0:00:01]} hxg4+ {[%emt 0:00:28]} 52. Kxg4 {[%emt 0:01:14]} Rg2+ {[%emt 0:00:48]} 53. Kh3 {[%emt 0:00:03]} Rh2+ {[%emt 0:00:41]} 54. Kg3 {[%emt 0:00:25]} e4 {[%emt 0:00:34]} 55. fxe4 {[%emt 0:00:43]} Re2 {[%emt 0:00:06]} 56. Rd7 {[%emt 0:00:57]} Bh2+ {[%emt 0:00:53]} 57. Kf3 {[%emt 0:00:14]} Re1 {[%emt 0:00:12]} 58. Kf2 {[%emt 0:00:40]} Rb1 {[%emt 0:00:16]} 59. Rd8+ {[%emt 0:00:59]} Kh7 {[%emt 0:00:01]} 60. Rd7+ {[%emt 0:00:12]} Kh8 {[%emt 0:00:25]} 61. Ng5 {[%emt 0:00:39]} Kg8 {[%emt 0:00:17]} 62. Rd8+ {[%emt 0:00:31]} Kg7 {[%emt 0:00:00]} 63. Rd7+ {[%emt 0:00:12]} Kg8 {[%emt 0:00:01]} 64. Rd8+ {[%emt 0:00:31]} Kg7 {[%emt 0:00:06]} 65. Rd7+ {[%emt 0:00:04]} 1/2-1/2